Cogmind - Beta 15 @@@ ROGUE MODE // 2025.10.01 @ 01:29:17 Player: Stalky Result: Destroyed by Y-45 Defender with Beam Rifle Performance ------------- Evolutions (2) 1000 Regions Visited (5) 1000 Robots Destroyed (52) 260 Value Destroyed (1186) 1186 Prototype IDs (0) 0 Alien Tech Used (0) 0 Bonus (194) 194 TOTAL SCORE: 3640 Bonus ------- Follower Combat Kills 202 Friendly Fire -8 Cogmind --------- Core Integrity 0/550 Matter 106/300 Energy 100/100 System Corruption 0% Temperature Cool (9) Movement Treading (170) Location -8/Materials Parts ------- > --- POWER (4) -------- (None) > --- PROPULSION (3) --- Armored Treads > --- UTILITY (2) ------ Advanced Visual Processing Unit Advanced Visual Processing Unit > --- WEAPON (2) ------- (None) > --- INVENTORY (5) ---- Surge Thruster Improved Heat Sink Trap Scanner Advanced Visual Processing Unit Reaction Control System Peak State ------------ > --- POWER ------------ Ion Engine Light Nuclear Core > --- PROPULSION ------- Aluminum Leg Aluminum Leg Carbon-fiber Leg > --- UTILITY ---------- Advanced Visual Processing Unit Advanced Visual Processing Unit > --- WEAPON ----------- Flak Cannon Mining Laser > --- INVENTORY -------- Improved Heat Sink Advanced Visual Processing Unit Heavy EM Pulse Gun Heavy EM Pulse Gun Light Assault Rifle [Rating: 20] Favorites ----------- Power Ion Engine Engine Ion Engine Power Core Light Nuclear Core Propulsion Aluminum Leg Treads Armored Treads Leg Aluminum Leg Wheel Wheel Hover Unit Hover Unit Flight Unit Flight Unit Utility Advanced Visual Processing Unit Device Improved Heat Sink Processor Advanced Visual Processing Unit Protection Light Armor Plating Weapon Light Assault Rifle Energy Gun Small Laser Ballistic Gun Light Assault Rifle Ballistic Cannon Flak Cannon Launcher Improved Grenade Launcher Special Weapon Mining Laser Impact Weapon Hammer Build | -11 -10 -10 -9 -9 -8 ------- Run | Yrd Mat Min Mat Min Mat Slots Evolved 4 | . . . 2 . 2 Power 3 | . . . 1 . 2 Propulsion 1 | . . . 1 . . Utility . | . . . . . . Weapon . | . . . . . . Parts Attached 51 | 8 8 12 9 4 10 Power 9 | 1 2 2 3 . 1 Engine 6 | 1 2 1 2 . . Core 3 | . . 1 1 . 1 Reactor . | . . . . . . Propulsion 19 | 4 1 5 3 1 5 Treads 1 | . . . . . 1 Leg 10 | 2 1 1 2 1 3 Wheel 2 | 2 . . . . . Hover 2 | . . 1 1 . . Flight 4 | . . 3 . . 1 Utility 9 | 1 2 3 3 . . Device 5 | 1 1 3 . . . Storage . | . . . . . . Processor 3 | . . . 3 . . Hackware . | . . . . . . Protection 1 | . 1 . . . . Artifact . | . . . . . . Weapon 14 | 2 3 2 . 3 4 Energy Gun 6 | 2 1 . . 1 2 Energy Cannon . | . . . . . . Ballistic Gun 2 | . . 2 . . . Ballistic Cannon 1 | . . . . . 1 Launcher 2 | . 1 . . . 1 Special Weapon 2 | . 1 . . 1 . Impact Weapon 1 | . . . . 1 . Slashing Weapon . | . . . . . . Piercing Weapon . | . . . . . . Special Melee Weapon . | . . . . . . Unidentified Prototypes . | . . . . . . Parts Lost 26 | . 4 4 3 1 14 Power 5 | . 1 . 1 . 3 Propulsion 9 | . 1 1 2 . 5 Utility 2 | . 1 1 . . . Weapon 10 | . 1 2 . 1 6 Highest Loss Streak 7 | . 4 4 2 1 7 To Critical Strikes . | . . . . . . Average Backups 4 | 2 4 4 4 4 4 Power . | . . 1 . . . Propulsion . | 1 1 1 . . . Utility 2 | . . 1 3 2 2 Weapon 1 | 1 2 . . 2 1 Tool/Special . | . . . . . . Unused Backups 15 | . . 1 9 1 4 Power 1 | . . . 1 . . Propulsion 3 | . . 1 1 . 1 Utility 9 | . . . 5 1 3 Weapon 2 | . . . 2 . . Tool/Special . | . . . . . . Average Slot Usage (%) 85 | . 94 93 87 98 47 Engine 11 | . 13 6 14 15 1 Core 3 | . . 7 1 6 3 Leg 20 | . 26 4 22 33 8 Hover 1 | . . 2 5 . . Flight 2 | . . 20 . . . Device 10 | . 22 22 10 . . Processor 11 | . . . 11 22 18 Energy Gun 9 | . 25 19 . 2 3 Ballistic Gun 9 | . . 6 22 12 . Special Weapon 1 | . 1 . . 2 1 Peak Build Rating 20 | 6 9 13 14 19 20 Average Rating 11 | 4 8 10 10 16 13 On Entrance 9 | . 6 9 9 14 19 Naked Turns . | . . . . . . Heaviest Build 17 | 7 11 11 13 14 17 Greatest Support 35 | 20 20 20 30 35 35 Greatest Overweight (x) 3 | . 1 1 1 . 3 Average Overweight (x) . | . . . . . . Largest Inventory Capacity 5 | 5 5 5 5 5 5 Average Capacity 5 | 5 5 5 5 5 5 Most Carried 5 | 5 5 5 5 5 5 Average Carried 4 | 2 4 4 4 4 4 Final Capacity 5 | 5 5 5 5 5 5 Final Carried 5 | 3 5 4 5 5 5 Class Distribution -------------------- 61% | Scavenger-Mutant 38% | Mutant Dominant Class ---------------- Mutant | -10/Materials Scavenger-Mutant | -10/Mines Scavenger-Mutant | -9/Materials Scavenger-Mutant | -9/Mines Mutant | -8/Materials Resources | -11 -10 -10 -9 -9 -8 ----------- Run | Yrd Mat Min Mat Min Mat Matter Collected 904 | 280 80 119 91 150 184 Remotely . | . . . . . . Salvage Created 1255 | 55 277 183 129 156 455 Parts 92 | 4 26 14 8 19 21 Haulers Intercepted . | . . . . . . Recyclers Shooed 1 | . . 1 . . . Parts Field Recycled . | . . . . . . Retrieved Matter . | . . . . . . Parts Self-Destructed . | . . . . . . Prevented . | . . . . . . Kills | -11 -10 -10 -9 -9 -8 ------- Run | Yrd Mat Min Mat Min Mat Combat Hostiles Destroyed 44 | 1 10 8 5 7 13 Melee 1 | . . . . 1 . Guns 29 | 1 7 8 5 5 3 Cannons 5 | . . . . 1 4 AOE 9 | . 3 . . . 6 Classes Destroyed 10 | 2 3 . . 2 3 Worker 4 | . 2 . . . 2 Tunneler 1 | 1 . . . . . Recycler 1 | . . . . . 1 Watcher 2 | . 1 . . . 1 Swarmer 22 | . 6 6 3 5 2 Cutter 2 | . . . . . 2 Grunt 16 | 1 4 2 2 . 7 Brawler 1 | . . . . 1 . Duelist 1 | . . . . 1 . Sentry 2 | . . . . . 2 Best Kill Streak 6 | 2 6 4 2 3 5 Combat Bots Only 6 | 1 6 3 2 3 4 Max Kills in Single Turn 2 | 1 2 2 1 1 2 Gunslinging . | . . . . . . Exploded 2 | . 2 . . . 2 Melee 1 | . . . . 1 . Uniques/NPCs Destroyed . | . . . . . . Combat | -11 -10 -10 -9 -9 -8 -------- Run | Yrd Mat Min Mat Min Mat Hostile Shots Fired 375 | 5 90 54 38 52 136 Missed 120 | 2 33 19 16 14 36 Hits 255 | 3 57 35 22 38 100 Melee 11 | . . . . 3 8 Projectile 244 | 3 57 35 22 35 92 AOE 1 | . . . . . 1 Critical Strikes 8 | . 1 . . 1 6 Damage Taken 3072 | 34 470 286 229 395 1658 Core 809 | . 64 61 55 75 554 Absorbed by Shields . | . . . . . . Core Remaining (%) 72 | 100 . 50 . 67 . Volleys Fired 180 | 4 28 28 27 30 63 Largest 2 | 2 2 2 2 2 2 Hottest 145 | 80 140 80 40 145 86 Shots Fired 269 | 8 48 44 54 38 77 Gun 222 | 8 44 44 54 35 37 Cannon 32 | . . . . . 32 Launcher 10 | . 2 . . . 8 Special 5 | . 2 . . 3 . Kinetic 144 | . . 8 54 30 52 Thermal 80 | 4 37 36 . 3 . Explosive 10 | . 2 . . . 8 Electromagnetic 35 | 4 9 . . 5 17 Robot Hit Streak 12 | 3 8 6 5 7 12 Robot Miss Streak 14 | 2 2 5 4 3 14 Penetration Max . | . . . . . . Secondary Targets 3 | . 2 . 1 . . Max Gunslinging Chain 1 | . 1 . 1 . . Shots Hit Robots 155 | 4 25 24 29 26 47 Core Hits 101 | 3 16 12 12 10 48 Critical Kills . | . . . . . . Critical Parts Destroyed . | . . . . . . Critical Strikes 1 | . . . . . 1 Corrupt 1 | . . . . . 1 Melee Attacks 6 | . . . . 6 . Impact 6 | . . . . 6 . Slashing . | . . . . . . Piercing . | . . . . . . Sneak Attacks . | . . . . . . Combat Hostiles . | . . . . . . Follow-up Attacks . | . . . . . . Damage Inflicted 2665 | 123 551 266 261 327 1137 Guns 1251 | 53 274 257 260 161 246 Cannons 422 | . . . . . 422 Explosions 814 | 70 277 . . . 467 Melee 94 | . . . . 94 . Ramming 12 | . . 9 1 . 2 Kinetic 976 | . . 27 260 146 543 Thermal 763 | 80 249 230 . 72 132 Explosive 518 | . 183 . . . 335 Electromagnetic 302 | 43 119 . . 15 125 Impact 94 | . . . . 94 . Slashing . | . . . . . . Piercing . | . . . . . . Highest Corruption 2 | . . 2 1 2 . Average Corruption 1 | . . 2 1 1 . Corruption Purged . | . . . . . . Corruption Blocked . | . . . . . . Effects 11 | . . . 1 10 . Message Errors 3 | . . . . 3 . Matter Fused 4 | . . . 1 3 . Heat Flow Errors 1 | . . . . 1 . Energy Discharges 2 | . . . . 2 . Data Loss (minor) 1 | . . . . 1 . Overload Shots . | . . . . . . Overflow Damage 37 | 4 . . . 11 22 Projectiles . | . . . . . . Explosions 26 | 4 . . . . 22 Melee 11 | . . . . 11 . Knockbacks 14 | . . . . . 14 Impact . | . . . . . . Kinetic 14 | . . . . . 14 Secondary . | . . . . . . Self-Inflicted Damage 126 | . . 4 . . 122 Shots 3 | . . . . . 3 Rammed 10 | . . 2 2 . 6 Targets Rammed 10 | . . 2 2 . 6 Kicked . | . . . . . . Crushed . | . . . . . . Highest Temperature 160 | 90 126 3 17 160 28 Average Temperature 31 | 48 48 3 5 43 8 Received Heat Transfer 843 | 18 36 36 69 54 630 Siege Activations . | . . . . . . Martial Activations . | . . . . . . Shielding Activations . | . . . . . . Robots Disrupted . | . . . . . . Combat Hostiles . | . . . . . . Robots Corrupted . | . . . . . . Combat Hostiles . | . . . . . . Parts Fried . | . . . . . . Impact Corruptions 1 | . . . . 1 . Robots Melted . | . . . . . . Combat Hostiles . | . . . . . . Parts Melted 1 | . 1 . . . . Heat Transferred 1450 | 175 500 525 . 150 100 Parts Sabotaged . | . . . . . . Parts Stolen . | . . . . . . Parts Stripped . | . . . . . . Power Chain Reactions 4 | 1 1 . . . 2 Alert | -11 -10 -10 -9 -9 -8 ------- Run | Yrd Mat Min Mat Min Mat Maximum Alert Level 1 | . . . . . 1 Low Security (%) 91 | 100 100 100 100 100 50 Level 1 8 | . . . . . 49 Level 2 . | . . . . . . Level 3 . | . . . . . . Level 4 . | . . . . . . Level 5 . | . . . . . . High Security . | . . . . . . Max Security . | . . . . . . Peak Influence 268 | 25 95 104 105 107 268 Initial 24 | . . 24 1 18 9 Average 58 | 4 31 54 42 39 153 Influence Increases 1698 | 25 292 190 365 313 513 Destroy 0b10 Robot/C 1120 | 20 200 160 240 240 260 Destroy 0b10 Robot/NC 60 | 5 15 . 20 . 20 Destroy Leader 240 | . 32 30 56 50 72 Allied During Kill 41 | . . . 33 8 . Successful Hack 4 | . . . . . 4 Disable Machine 60 | . 15 . 15 . 30 Destroy Structure 98 | . 15 . 1 . 82 Lose Combat Pursuer 75 | . 15 . . 15 45 Influence Decreases 1514 | 25 230 248 322 334 355 Entered New Map 87 | . . 38 3 29 17 Time Decay 1152 | 25 190 170 289 265 213 Lost Part 215 | . 40 40 10 . 125 Lost Ally 60 | . . . 20 40 . Squads Dispatched 8 | . . . 2 . 6 Investigation 1 | . . . . . 1 Extermination . | . . . . . . Reinforcement 4 | . . . 2 . 2 Assault . | . . . . . . Garrison 3 | . . . . . 3 Intercept . | . . . . . . Searches Triggered . | . . . . . . Construction Impeded . | . . . . . . Haulers Reinforced . | . . . . . . Active Scanning Responses . | . . . . . . Cargo Convoy Interrupts . | . . . . . . Stealth | -11 -10 -10 -9 -9 -8 --------- Run | Yrd Mat Min Mat Min Mat Distress Signals 2 | . 2 . . . . Communications Jammed . | . . . . . . Distress Signals . | . . . . . . Times Spotted 76 | 1 18 7 17 13 20 Peak Tracking Total 6 | 1 6 3 3 3 6 Tactical Retreats 4 | . 1 . . 1 2 Traps | -11 -10 -10 -9 -9 -8 ------- Run | Yrd Mat Min Mat Min Mat Traps Triggered 2 | . . . 1 . 1 Indirectly . | . . . . . . Trap Hack Attempts . | . . . . . . Triggered . | . . . . . . Disarmed . | . . . . . . Reprogrammed . | . . . . . . Reused . | . . . . . . Traps Extracted . | . . . . . . Installed . | . . . . . . Triggered . | . . . . . . Machines | -11 -10 -10 -9 -9 -8 ---------- Run | Yrd Mat Min Mat Min Mat Machines Disabled 4 | . 1 . 1 . 2 Max in Single Turn 1 | . 1 . . . 1 Machines Repaired . | . . . . . . Machines Dismantled . | . . . . . . Machines Sabotaged . | . . . . . . Overloaded Fab Kills . | . . . . . . Hacking | -11 -10 -10 -9 -9 -8 --------- Run | Yrd Mat Min Mat Min Mat Machines Accessed 6 | . 2 . 2 . 2 Terminals 5 | . 2 . 2 . 1 Fabricators . | . . . . . . Repair Stations . | . . . . . . Recycling Units . | . . . . . . Scanalyzers . | . . . . . . Garrison Access 1 | . . . . . 1 Total Hacks 8 | . 3 . 3 . 2 Successful 5 | . 2 . 1 . 2 Failed 3 | . 1 . 2 . . Catastrophic . | . . . . . . Database Lockouts . | . . . . . . Manual . | . . . . . . Terminals 7 | . 3 . 3 . 1 Fabricators . | . . . . . . Repair Stations . | . . . . . . Recycling Units . | . . . . . . Scanalyzers . | . . . . . . Garrison Access 1 | . . . . . 1 Terminal Hacks 4 | . 2 . 1 . 1 Record 1 | . 1 . . . . Alert Level 2 | . . . 1 . 1 Zone Layout 1 | . 1 . . . . Fabricator Hacks . | . . . . . . Repair Station Hacks . | . . . . . . Recycling Unit Hacks . | . . . . . . Scanalyzer . | . . . . . . Garrison Access Hacks 1 | . . . . . 1 Unlock Access 1 | . . . . . 1 Unauthorized Hacks . | . . . . . . Terminals . | . . . . . . Fabricators . | . . . . . . Repair Stations . | . . . . . . Recycling Units . | . . . . . . Scanalyzers . | . . . . . . Garrison Access . | . . . . . . Data Cores Recovered . | . . . . . . Used . | . . . . . . Hacking Detections 2 | . 1 . 1 . . Full Trace Events . | . . . . . . Feedback Events . | . . . . . . Feedback Blocked . | . . . . . . Robot Schematics Acquired . | . . . . . . Robots Built . | . . . . . . Authchips . | . . . . . . Time . | . . . . . . Total Robot Build Rating . | . . . . . . Part Schematics Acquired . | . . . . . . Parts Built . | . . . . . . Authchips . | . . . . . . Time . | . . . . . . Total Part Build Rating . | . . . . . . Parts Repaired . | . . . . . . Time . | . . . . . . Parts Recycled . | . . . . . . Recycled Matter . | . . . . . . Retrieved Matter . | . . . . . . Retrieved Components . | . . . . . . Parts Scanalyzed . | . . . . . . Part Schematics Acquired . | . . . . . . Parts Damaged . | . . . . . . Bothacking | -11 -10 -10 -9 -9 -8 ------------ Run | Yrd Mat Min Mat Min Mat Used RIF Installer . | . . . . . . Robots Hacked . | . . . . . . Non-combat . | . . . . . . Combat . | . . . . . . Robot Hacks Applied . | . . . . . . Relay Couplers Released . | . . . . . . Fabnet Peak Effective % . | . . . . . . Robots Rewired . | . . . . . . Allies Hacked . | . . . . . . Hacks Repelled . | . . . . . . Allies | -11 -10 -10 -9 -9 -8 -------- Run | Yrd Mat Min Mat Min Mat Total Allies 3 | . . 2 . 1 . Largest Group 2 | . . 2 2 1 . Highest-Rated Group 45 | . . 45 45 31 . Highest-Rated Ally 31 | . . 31 31 31 . Total Orders . | . . . . . . Ally Attacks 51 | . . . 34 17 . Total Damage 818 | . . . 505 313 . Kills 16 | . . . 11 5 . Allies Corrupted . | . . . . . . Allies Melted . | . . . . . . Intel | -11 -10 -10 -9 -9 -8 ------- Run | Yrd Mat Min Mat Min Mat Active Infowar (turns) 2635 | 54 522 64 768 687 540 Optics 1789 | . . . 562 687 540 Seismic 1164 | 54 522 64 524 . . Robot Analysis Total . | . . . . . . Derelict Logs Recovered 1 | . . . . 1 . Drone Launches . | . . . . . . Drone Recoveries . | . . . . . . Exploration | -11 -10 -10 -9 -9 -8 ------------- Run | Yrd Mat Min Mat Min Mat Turns Passed 3159 | 157 648 359 768 687 540 Spaces Moved 2258 | 145 448 295 630 471 269 Core 74 | 24 . . 27 . 23 Treads 69 | . . . . . 69 Legs 1430 | 42 448 11 292 471 166 Wheels 79 | 79 . . . . . Hover 353 | . . 42 311 . . Flight 253 | . . 242 . . 11 Fastest Speed 37 | 50 120 37 50 120 50 Average Speed 111 | 86 123 87 104 120 134 Slowest Speed 200 | 120 190 130 130 120 200 Overloaded Moves . | . . . . . . Propulsion Burnouts . | . . . . . . Robots Hopped 3 | . . 3 . . . Potential Cave-ins . | . . . . . . Cave-ins Triggered . | . . . . . . Exploration Rate (%) 35 | 10 28 29 45 76 27 Regions Visited 5 Branch Regions 2 Pre-discovered Areas . | . . . . . . Known Exits Taken . | . . . . . . Unknown Exits Taken 5 | 1 1 1 1 1 . Scrap Searched 1 | . . 1 . . . Spaces Dug 2 | . 2 . . . . Terrain Destroyed 97 | . 14 . . . 83 Melee . | . . . . . . Projectile 2 | . 2 . . . . AOE 95 | . 12 . . . 83 Terrain Rammed . | . . . . . . Walls Destroyed . | . . . . . . Machines Disabled . | . . . . . . Actions | -11 -10 -10 -9 -9 -8 --------- Run | Yrd Mat Min Mat Min Mat Total 2634 | 169 492 355 706 544 368 Wait 28 | . . . . 26 2 Move 2247 | 144 447 288 629 470 269 Hop 3 | . . 3 . . . Pick Up 68 | 11 8 12 22 4 11 Fast Attach . | . . . . . . Attach 42 | 8 6 9 8 1 10 Detach 1 | . . 1 . . . Swap 16 | . 2 3 2 4 5 Drop 33 | 2 1 9 16 3 2 Fire 180 | 4 28 28 27 30 63 Melee 6 | . . . . 6 . Ram 4 | . . 2 2 . . Kick . | . . . . . . Crush 6 | . . . . . 6 Escape Stasis . | . . . . . . Rewire . | . . . . . . Trap . | . . . . . . Miscellaneous . | . . . . . . Route ------- -11/Scrapyard -10/Materials -10/Mines -9/Materials -9/Mines (discovered 2 exits: *Mat / [*Zio]) -8/Materials (discovered 2 exits: [*Fac] / Gar) History --------- Turn | Location | Event 2 | -11/Scrapyard | Met Revision 17 74 | -11/Scrapyard | Discovered new exit (range 8) 158 | -11/Scrapyard | Entered Materials 179 | -10/Materials | Discovered new exit (range 15) 318 | -10/Materials | Build established: Mutant 721 | -10/Materials | Lost 4 parts (1p1n1u1w) 806 | -10/Materials | Entered Mines 1093 | -10/Mines | Discovered new exit (range 6) 1100 | -10/Mines | Lost 4 parts (1n1u2w) 1143 | -10/Mines | Build established: Scavenger-Mutant 1165 | -10/Mines | Entered Materials 1165 | -9/Materials | Accompanied by 2 allies 1165 | -9/Materials | Evolved 2 slots: Power x1, Propulsion x1 1170 | -9/Materials | Led the pair of lost Derelicts to an unsafe place 1856 | -9/Materials | Discovered new exit (range 10) 1933 | -9/Materials | Entered Mines 1933 | -9/Mines | Accompanied by 1 ally 2047 | -9/Mines | Met a Derelict bent on vengeance 2146 | -9/Mines | A Derelict revealed a hidden shortcut to a safe place 2360 | -9/Mines | Learned Materials security intel 2476 | -9/Mines | Received a Mining Laser from a helpful Derelict 2564 | -9/Mines | Discovered new exit (range 10) 2620 | -9/Mines | Entered Materials 2620 | -8/Materials | Evolved 2 slots: Power x2 2743 | -8/Materials | Garrison activated, responded to threat 2781 | -8/Materials | Lost 7 parts (2p2n3w) 2834 | -8/Materials | Identified exit to Garrison 2854 | -8/Materials | Core integrity fell below 50% 2893 | -8/Materials | Discovered new exit (range 12) 3026 | -8/Materials | Build established: Mutant 3114 | -8/Materials | Core integrity fell below 20% 3129 | -8/Materials | Lost 3 parts (1p2w) 3160 | -8/Materials | Destroyed by Y-45 Defender with Beam Rifle Last Messages --------------- Y-45 Defender destroyed. Acquired 46 matter. K-01 Serf collects debris. Critical hit (Burn: +37). K-01 Serf cleans the TF Node. Flak Cannon destroyed. K-01 Serf cleans the TF Node. Hvy. EM Pulse Gun destroyed. Lgt. Nuclear Core destroyed. Slammed into Y-45 Defender. K-01 Serf cleans the TF Node. Slammed into Y-45 Defender. K-01 Serf cleans the TF Node. Critical hit (Burn: +37). M-13 Machinist repairs Y-45 Defender. Y-45 Defender IFF system glitched. Acquired Trap Scanner. Critical hit (Burn: +37). Y-45 Defender misfires. Slammed into Y-45 Defender. Map ----- +----------------------------------------------------+ | ????? """ ######## ### # # | | ????###+#+### """ #??????# #### ### # | | ????????????### """ #?? " + =% | | ??????????????# #??????###### # | | ??????????????# +?????????### ## ##### | | ??????????????# """ #?????????# [ ### # | | ??????????????# """ #?????????# ##### | | ?????????????? """ #?????????# #??? | | ?????????????## #?????????# ##?## | | ?????????????? ? ! #?????????# "" !!! #??# | | ?????????????? """ #?????????# "G> !!! #??# | | ????????????? """ +?????????# "" !!! #??# | | ?????????????? ?"" #?????????# #??# | | ?????????????? ? #?????????###########??# | | ??????????????? #??????????????????????## | | ?????????????????? """ #???????????????????????# | | ???????????????????""" #???????????????????????# | | ???????????????????""" #???????????????????????# | | ???????????????????? ##########??????????????# | | ????????????????????? # #??????????##### | | ?????????????????????# # #??????????# | | ?????????????????????# # !! #??????????# | | ?????????????????????# # !!! #??????????# | | ?????????????????????# k# !! #?????????? | | ?????????????????????# # #?????????? # | | ?????????????????????# mY@ k #?????????? # | | ?????????????????????# # #???????### | | ?????????????????????#a # #??????## # | | ??????################ ##########???#### | | ??????# """ """ # #???????????# =!# | | ??????# """"""""" # ############# """ !%! | | ??????# """"" " !+ " = + "T" # *|# | | ??????# # ##+########## # | | ??????# # # #????# + # | | ??????# !### ### """ #????# # # | | ??????######## ######?# #?# """ #????######## # | | ?????????????###?????? #?# """ #???????????# # | | ????????????????????? #?# #???????????# # | | ???????????????????? #?# #???????????# # | | ???????????????????!? #?########???????????# # | | ??????????????????#? #????????????????????# # | | ????????????????????! #????????????????????# # | | ???????????????????#### #????????????????????# # | | ??????????????????????# ?????????????????????# # | | ??????????????????????? ????????????????????? | | ??????????????????????? ????????????????????? | | ??????????????????????? ????????????????????? | | ??????????????????????? ????????????????????? | | ????????????????????????????????????????????? | | ??????????????????????????????????????????????###? | +----------------------------------------------------+ Best States ------------- Heat Dissipation 53 Energy Generation 19 Energy Capacity 400 Matter Stores 300 Matter Capacity 300 Sight Range 20 Terrain Scan Density 10 Armor Coverage 150 Evasion (%) 62 Recoil Reduction 1 Item Schematics ----------------- None Robot Schematics ------------------ None Fabricated ------------ Nothing Repaired ---------- Nothing Alien Tech Used ----------------- None Achievements -------------- Crack Shot Storm Trooper Troublemaker Universal Adapter Challenges ------------ None Game ------ Seed HeartResetSource Manual? 0 Play Time 00:48:04 Cumulative 0.9 hours Start 2025.09.26 @ 10:40:55 End 2025.10.01 @ 01:29:17 Sessions 3 Manual Loads 0 Difficulty Rogue Special Mode None Game No. 2 Rogue 2 Adventurer 0 Explorer 0 Win Type - Total 0 Types 0/0/0/0/0/0/0/0/0/0 Lore% 0 Gallery% 2 Achievement% 3 Wizard Run 0 Options --------- Layout 1 ASCII 0 Keyboard 0 Movement Mouse Keybinds 0 Fullscreen 1 Font 24/Smallcaps Map View 50x35 Zoom Use 0% Tactical HUD 0 Map Filters NONE Filters NONE Steam 1 RUN: edce484b-0806-47e6-8ffe-5a641d6a2be7